fUSD/lending_fUSD_20241125
["ID","MTS","AMOUNT","RATE_DAILY","PERIOD"]
[343249298,1732531843704,-727.52574997,0.00039401,2]
[343249299,1732531843713,-2254.82619781,0.00039402,2]
[343249300,1732531843723,-200.0,0.00039413,2]
[343249301,1732531843732,-2254.82619781,0.00039415,2]
[343249302,1732531843743,-14370.90621658,0.00039415,2]
[343249303,1732531843752,-727.52574997,0.00039448,2]
[343249304,1732531843763,-2254.82619781,0.00039448,2]
[343249305,1732531843773,-2214.40814252,0.00039449,2]
[343249306,1732531843782,-14370.90621658,0.0003945,2]
[343249307,1732531843792,-228.86,0.00039456,2]
[343249308,1732531843801,-727.52574997,0.00039459,2]
[343249309,1732531843810,-2214.40814252,0.00039459,2]
[343249310,1732531843820,-727.52574997,0.00039461,2]
[343249311,1732531843829,-14370.90621658,0.0003947,2]
[343249312,1732531843841,-200.0,0.00039471,2]
[343249313,1732531843850,-2214.40814252,0.00039472,2]
[343249314,1732531843859,-2214.40814252,0.00039474,2]
[343249315,1732531843870,-2254.82619781,0.00039474,2]
[343249316,1732531843879,-14370.90621658,0.00039477,2]
[343249317,1732531843889,-3204.26153229,0.00039478,2]
[343249318,1732531843898,-3204.26153229,0.0003948,2]
[343249319,1732531843908,-14370.90621658,0.00039483,2]
[343249320,1732531843919,-14370.90621658,0.00039483,2]
[343249322,1732531843928,-3204.26153229,0.00039485,2]
[343249324,1732531843939,-2002.98,0.00039486,2]
[343249326,1732531843949,-6206.88,0.00039486,2]
[343249328,1732531843958,-9999.99,0.00039486,2]
[343249330,1732531843967,-1898.37,0.00039486,15]
[343249331,1732531843977,-271.47,0.00039486,2]
[343249333,1732531843986,-205.32,0.00039486,2]
[343249335,1732531843995,-150.99,0.00039486,2]
[343249337,1732531844006,-2254.82619781,0.00039486,2]
[343249339,1732531844018,-727.52574997,0.00039499,2]
[343249340,1732531844027,-250.0,0.00039519,2]
[343249341,1732531844037,-6564.86,0.00039519,2]
[343249342,1732531844046,-200.0,0.00039532,2]
[343249343,1732531844056,-172.35,0.00039572,2]
[343249344,1732531844066,-150.0,0.00039648,2]
[343249345,1732531844076,-16941.18330081,0.00039777,2]
[343249346,1732531844089,-6948.70093496,0.00039777,2]
[343249347,1732531844100,-2898.16789894,0.00039777,2]
[343249348,1732531844109,-2393.60000567,0.00039778,2]
[343249349,1732531844118,-2983.97738685,0.00039778,2]
[343249350,1732531844128,-1000.0,0.00039877,2]
[343249351,1732531844137,-500.0,0.00039877,21]
[343249352,1732531844145,-500.0,0.00039877,21]
[343249353,1732531844155,-3321.44059401,0.00039877,21]
[343249354,1732531844166,-119.04940599,0.00039877,21]
[343249355,1732531844175,-1042.64,0.00039877,21]
[343249356,1732531844184,-500.0,0.00039877,21]
[343249357,1732531844193,-595.15,0.00039877,21]
[343249358,1732531844202,-3017.6,0.00039877,21]
[343249359,1732531844211,-2307.14730738,0.00039877,21]
[343249360,1732531844222,-1109.91867494,0.00039877,21]
[343249361,1732531844233,-925.07401768,0.00039877,21]
[343249362,1732531844242,-500.0,0.00039877,21]
[343249363,1732531844251,-500.0,0.00039877,21]
[343249364,1732531844260,-500.0,0.00039877,21]
[343249365,1732531844271,-500.0,0.00039877,21]
[343249366,1732531844281,-500.0,0.00039877,21]
[343249367,1732531844290,-500.0,0.00039877,21]
[343249368,1732531844299,-304.8832116,0.00039877,2]
[343249369,1732531844309,-4342.15,0.00039877,21]
[343249370,1732531844318,-500.0,0.00039877,21]
[343249371,1732531844327,-925.13,0.00039877,21]
[343249372,1732531844339,-500.0,0.00039877,21]
[343249373,1732531844354,-500.0,0.00039877,21]
[343249374,1732531844365,-519.07501138,0.00039877,21]
[343249375,1732531844375,-934.54,0.00039878,2]
[343249376,1732531844385,-150.0,0.00039884,2]
[343249377,1732531844394,-457.1215,0.00039888,7]
[343249378,1732531844403,-316.02290198,0.0003993,2]
[343249379,1732531844413,-165.44,0.00039973,2]
[343249380,1732531844422,-150.0,0.00039976,2]
[343249381,1732531844432,-160.92,0.00039996,2]
[343249382,1732531844442,-287.0,0.0004,10]
[343249383,1732531844452,-651.3711103,0.0004,5]
[343249384,1732531844461,-1293.4931,0.0004,2]
[343249385,1732531844471,-169869.5939266,0.0004,7]
[343249386,1732531844483,-4704.000003,0.0004,7]
[343249387,1732531844498,-1770.0,0.0004,7]
[343249388,1732531844510,-23687.5179997,0.0004,7]
[343249389,1732531844520,-156.4817767,0.0004003,2]
[343249390,1732531844532,-9.0882233,0.0004003,2]
[343249391,1732531844710,-150.0,0.00040056,2]
[343249392,1732531844720,-160.92,0.00040063,2]
[343249393,1732531844729,-150.0,0.00040086,2]
[343249394,1732531844739,-150.0,0.00040107,2]
[343249395,1732531844748,-160.92,0.0004013,2]
[343249396,1732531844757,-500.0,0.00040151,21]
[343249397,1732531844769,-500.0,0.00040151,21]
[343249398,1732531844778,-3440.49,0.00040151,21]
[343249399,1732531844788,-1042.64,0.00040151,21]
[343249400,1732531844797,-514.25272876,0.00040151,21]
[343249401,1732531844807,-595.15,0.00040151,21]
[343249402,1732531844816,-3017.6,0.00040151,21]
[343249403,1732531844829,-4342.14,0.00040151,21]
[343249404,1732531844838,-500.0,0.00040151,21]
[343249405,1732531844847,-500.0,0.00040151,21]
[343249406,1732531844856,-500.0,0.00040151,21]
[343249407,1732531844866,-500.0,0.00040151,21]
[343249408,1732531844875,-4342.15,0.00040151,21]
[343249409,1732531844884,-500.0,0.00040151,21]
[343249410,1732531844894,-925.13,0.00040151,21]
[343249411,1732531844904,-163.94490061,0.00040151,21]
[343249412,1732531844913,-160.92,0.00040196,2]
[343249413,1732531844923,-159.28,0.00040349,2]
[343249414,1732531844932,-500.0,0.00040425,21]
[343249415,1732531844941,-500.0,0.00040425,21]
[343249416,1732531844950,-3440.49,0.00040425,21]
[343249417,1732531844959,-1042.64,0.00040425,21]
[343249418,1732531844969,-595.15,0.00040425,21]
[343249419,1732531844978,-3017.6,0.00040425,21]
[343249420,1732531844987,-4342.14,0.00040425,21]
[343249421,1732531844997,-500.0,0.00040425,21]
[343249422,1732531845006,-500.0,0.00040425,21]
[343249423,1732531845016,-500.0,0.00040425,21]
[343249424,1732531845025,-500.0,0.00040425,21]
[343249425,1732531845034,-2438.02297808,0.00040425,21]
[343249431,1732531846406,-514.91,0.00039476,10]
[343249432,1732531846416,-500.0,0.00039877,21]
[343249433,1732531846425,-263.471,0.00039877,21]
[343249434,1732531846437,-1373.619,0.00039877,21]
[343249435,1732531846447,-520.89,0.00039877,21]
[343249436,1732531846457,-1637.09,0.00040151,21]
[343249437,1732531846467,-173.99866951,0.00040425,21]
[343249438,1732531846478,-1730.12835241,0.00040425,21]
[343249439,1732531846488,-500.0,0.00040425,21]
[343249440,1732531846497,-144.81449008,0.00040425,21]
[343249441,1732531846508,-780.31550992,0.00040425,21]
[343249442,1732531846520,-276.26453008,0.00040425,21]
[343249449,1732531847118,-1360.82546992,0.00040425,21]
[343249450,1732531847131,-150.0,0.00040443,2]
[343249451,1732531847144,-150.0,0.00040447,2]
[343249452,1732531847157,-1155.39471653,0.00040484,2]
[343249453,1732531847169,-150.0,0.00040485,2]
[343249454,1732531847185,-400.0,0.000405,14]
[343249455,1732531847199,-150.0,0.00040501,2]
[343249456,1732531847212,-150.0,0.00040554,2]
[343249457,1732531847224,-493.62751557,0.00040569,28]
[343249458,1732531847237,-2983.9773868,0.00040569,15]
[343249459,1732531847249,-2393.60000559,0.00040572,15]
[343249460,1732531847261,-716.05849,0.0004059,5]
[343249461,1732531847275,-150.0,0.00040591,2]
[343249462,1732531847287,-900.0,0.000406,14]
[343249463,1732531847301,-150.0,0.00040607,2]
[343249464,1732531847314,-150.0,0.00040622,2]
[343249465,1732531847327,-500.0,0.00040699,21]
[343249466,1732531847338,-500.0,0.00040699,21]
[343249467,1732531847351,-3440.49,0.00040699,21]
[343249468,1732531847364,-1042.64,0.00040699,21]
[343249469,1732531847376,-595.15,0.00040699,21]
[343249470,1732531847389,-3017.6,0.00040699,21]
[343249471,1732531847402,-4342.14,0.00040699,21]
[343249472,1732531847414,-500.0,0.00040699,21]
[343249473,1732531847426,-500.0,0.00040699,21]
[343249474,1732531847440,-500.0,0.00040699,21]
[343249475,1732531847452,-500.0,0.00040699,21]
[343249476,1732531847465,-4342.15,0.00040699,21]
[343249477,1732531847478,-500.0,0.00040699,21]
[343249478,1732531847491,-925.13,0.00040699,21]
[343249479,1732531847504,-1400.0,0.000407,14]
[343249480,1732531847519,-353.054276,0.00040706,2]
[343249481,1732531847531,-150.0,0.00040749,2]
[343249482,1732531847544,-150.0,0.00040755,2]
[343249483,1732531847556,-206.18533889,0.00040759,2]
[343249484,1732531847570,-150.0,0.00040764,2]
[343249485,1732531847583,-150.0,0.00040767,2]
[343249486,1732531847595,-150.0,0.00040768,2]
[343249487,1732531847608,-500.0,0.00040771,21]
[343249488,1732531847621,-1906.05,0.00040771,21]
[343249489,1732531847634,-1258.74,0.00040771,21]
[343249490,1732531847647,-594.57,0.00040771,21]
[343249491,1732531847660,-5191.0,0.00040771,21]
[343249492,1732531847673,-887.67,0.00040771,21]
[343249493,1732531847686,-1093.08,0.00040771,21]
[343249494,1732531847699,-596.21,0.00040771,21]
[343249495,1732531847710,-536.75449199,0.00040771,21]
[343249496,1732531847723,-500.0,0.00040771,21]
[343249497,1732531847735,-25766.68,0.00040771,21]
[343249498,1732531847748,-3607.02,0.00040771,21]
[343249499,1732531847760,-500.0,0.00040771,21]
[343249500,1732531847775,-500.0,0.00040771,21]
[343249501,1732531847788,-500.0,0.00040771,21]
[343249502,1732531847800,-4944.71,0.00040771,21]
[343249503,1732531847812,-500.0,0.00040771,21]
[343249504,1732531847828,-500.0,0.00040771,21]
[343249505,1732531847840,-1500.0,0.00040772,2]
[343249506,1732531847854,-150.0,0.00040778,2]
[343249507,1732531847866,-643.43090321,0.0004078,2]
[343249508,1732531848062,-520.89,0.00040151,21]
[343249509,1732531848075,-462.1179992,0.00040699,21]
[343249510,1732531848090,-428.01916,0.00040699,21]
[343249511,1732531848135,-746.9528408,0.00040699,21]
[343249512,1732531848147,-856.56909679,0.0004078,2]
[343249513,1732531848157,-150.0,0.00040783,2]
[343249514,1732531848167,-150.0,0.00040783,2]
[343249515,1732531848177,-150.0,0.00040788,2]
[343249516,1732531848187,-150.0,0.00040789,2]
[343249517,1732531848197,-150.0,0.00040793,2]
[343249518,1732531848207,-215.61548192,0.00040796,2]
[343249519,1732531848218,-150.0,0.00040796,2]
[343249520,1732531848228,-1800.0,0.000408,14]
[343249521,1732531848550,-150.0,0.00040805,2]
[343249522,1732531848568,-663.34,0.00040807,2]
[343249523,1732531848580,-150.0,0.00040813,2]
[343249524,1732531848591,-150.0,0.00040824,2]
[343249525,1732531848601,-150.0,0.00040833,2]
[343249526,1732531848612,-150.0,0.00040836,2]
[343249527,1732531848623,-150.0,0.00040843,2]
[343249528,1732531848634,-150.0,0.00040844,2]
[343249529,1732531848645,-1500.0,0.00040856,2]
[343249530,1732531848656,-150.0,0.00040862,2]
[343249531,1732531848668,-150.0,0.00040878,2]
[343249532,1732531848679,-150.0,0.00040892,2]
[343249533,1732531848691,-150.0,0.00040894,2]
[343249534,1732531848703,-150.0,0.00040897,2]
[343249535,1732531848714,-163.72261203,0.000409,15]
[343249536,1732531848725,-2300.0,0.000409,14]
[343249537,1732531848737,-150.0,0.00040905,2]
[343249538,1732531848749,-150.0,0.00040912,2]
[343249539,1732531848759,-150.0,0.00040914,2]
[343249540,1732531848777,-970.89,0.0004092,3]
[343249541,1732531848789,-1941.78,0.0004092,2]
[343249542,1732531848800,-296.71,0.0004092,2]
[343249543,1732531848812,-716.0585,0.0004092,6]
[343249544,1732531848824,-150.0,0.00040921,2]
[343249545,1732531848837,-150.0,0.00040927,2]
[343249546,1732531848848,-150.0,0.00040937,2]
[343249547,1732531848858,-150.0,0.00040942,2]
[343249548,1732531848872,-150.0,0.00040944,2]
[343249549,1732531848883,-150.0,0.00040952,2]
[343249550,1732531848895,-150.0,0.00040955,2]
[343249551,1732531848906,-150.0,0.00040958,2]
[343249552,1732531848918,-223.40528347,0.00040961,2]
[343249553,1732531848928,-153.17,0.00040963,2]
[343249554,1732531848939,-150.0,0.00040967,2]
[343249555,1732531848948,-159.26082865,0.00040973,2]
[343249556,1732531848958,-159.26242659,0.00040973,2]
[343249557,1732531848968,-159.2636501,0.00040973,2]
[343249558,1732531848978,-500.0,0.00040973,2]
[343249559,1732531848988,-159.2483093,0.00040973,2]
[343249560,1732531848998,-169.21463042,0.00040973,5]
[343249561,1732531849008,-159.28680269,0.00040973,2]
[343249562,1732531849022,-500.0,0.00040973,21]
[343249563,1732531849035,-500.0,0.00040973,21]
[343249564,1732531849045,-3440.49,0.00040973,21]
[343249565,1732531849055,-1042.64,0.00040973,21]
[343249566,1732531849064,-595.15,0.00040973,21]
[343249567,1732531849074,-3017.6,0.00040973,21]
[343249568,1732531849085,-4342.14,0.00040973,21]
[343249569,1732531849095,-500.0,0.00040973,21]
[343249570,1732531849104,-500.0,0.00040973,21]
[343249571,1732531849113,-500.0,0.00040973,21]
[343249572,1732531849123,-500.0,0.00040973,21]
[343249573,1732531849132,-4342.15,0.00040973,21]
[343249574,1732531849142,-500.0,0.00040973,21]
[343249575,1732531849151,-925.13,0.00040973,21]
[343249576,1732531849162,-150.0,0.00040974,2]
[343249577,1732531849172,-8601.51515922,0.00040989,14]
[343249578,1732531849792,3750.0,0.0004,120]
[343249579,1732531849830,3750.0,0.0004,120]
[343249580,1732531849874,5000.0,0.0004,120]
[343249581,1732531917303,250.0,0.00039896,120]
[343249582,1732531975606,2650.601,0.0004,30]
[343249583,1732531994997,9798.85,0.0004,30]
[343249587,1732532006975,150.17,0.0003994,120]
[343249588,1732532011657,16015.57113029,0.0004,120]
[343249593,1732532057154,177.69,0.00039518,120]
[343249595,1732532135638,1283.57,0.0004,120]
[343249596,1732532187672,1500.0,0.00039392,120]
[343249597,1732532216927,150.0,0.00025,2]
[343249598,1732532216953,150.0,0.00025,2]
[343249599,1732532216975,150.0,0.00025,2]
[343249600,1732532216996,227.81633145,0.00025,2]
[343249601,1732532217019,150.0,0.00025,2]
[343249602,1732532217052,7827.09890186,0.00025,2]
[343249603,1732532240788,1000.0,0.00028,3]
[343249604,1732532245619,940.0,0.00039777,30]
[343249605,1732532306254,81142.0,0.0004,30]
[343249606,1732532318644,59000.0,0.0004,120]
[343249607,1732532384076,150.0,0.00030685,2]
[343249608,1732532384098,10.9,0.00030685,2]
[343249611,1732532545414,8968.0,0.0004,30]
[343249612,1732532653661,-857.92,0.00036718,2]
[343249613,1732532653692,-1748.5,0.00036874,2]
[343249614,1732532653717,-400.0,0.00036973,2]
[343249615,1732532653742,-362.9181109,0.0003726,2]
[343249616,1732532653768,-152.0,0.0003726,3]
[343249617,1732532653973,-2391.66,0.00038477,2]
[343249618,1732532653998,-500.0,0.00038625,2]
[343249619,1732532654021,-200.0,0.00038664,2]
[343249620,1732532654047,-174.55,0.00038761,2]
[343249621,1732532654075,-250.0,0.00038825,2]
[343249622,1732532654100,-1000.0,0.0003889,2]
[343249623,1732532654124,-1546.72,0.0003897,2]
[343249624,1732532654148,-857.92,0.00038982,2]
[343249625,1732532654175,-7129.89,0.00039015,2]
[343249626,1732532654200,-629.18,0.00039018,2]
[343249627,1732532654226,-772.91,0.00039029,2]
[343249628,1732532654251,-165.44,0.00039086,2]
[343249629,1732532654275,-456.65,0.00039122,2]
[343249630,1732532654299,-23900.0,0.00039147,2]
[343249631,1732532654322,-344.22,0.00039269,2]
[343249632,1732532654344,-300.0,0.00039382,2]
[343249633,1732532654368,-1144.93881912,0.00039416,2]
[343249634,1732532654392,-1144.93881912,0.00039427,2]
[343249635,1732532654417,-1144.93881912,0.0003943,2]
[343249636,1732532654441,-1144.93881912,0.00039436,2]
[343249637,1732532654465,-1144.93881912,0.0003948,2]
[343249638,1732532654489,-1144.93881912,0.00039495,2]
[343249639,1732532654512,-2000.0,0.0003953,2]
[343249640,1732532654536,-560.0,0.00039562,5]
[343249641,1732532654560,-250.0,0.00039721,2]
[343249642,1732532654584,-429.1,0.00039867,10]
[343249643,1732532654607,-357.58,0.00039867,10]
[343249644,1732532654631,-2262.0,0.00039869,2]
[343249645,1732532654660,-930.71,0.00039877,21]
[343249646,1732532654686,-500.0,0.00039877,21]
[343249647,1732532654709,-500.0,0.00039877,21]
[343249648,1732532654736,-977.78,0.00039877,21]
[343249649,1732532654760,-529.97,0.00039877,21]
[343249650,1732532654783,-500.0,0.00039877,21]
[343249651,1732532654807,-500.0,0.00039877,21]
[343249652,1732532654832,-500.0,0.00039877,21]
[343249653,1732532654855,-500.0,0.00039877,21]
[343249654,1732532654878,-1187.33,0.00039877,21]
[343249655,1732532654902,-910.51,0.00039877,21]
[343249656,1732532654926,-824.84,0.00039877,21]
[343249657,1732532654949,-1094.91,0.00039877,21]
[343249658,1732532654972,-500.0,0.00039877,21]
[343249659,1732532654996,-178.56497696,0.00039877,21]
[343249660,1732532655020,-500.0,0.00039877,21]
[343249661,1732532655043,-472.16094396,0.00039877,21]
[343249662,1732532655070,-500.0,0.00039877,21]
[343249663,1732532655094,-922.35,0.00039877,21]
[343249664,1732532655118,-500.0,0.00039877,7]
[343249665,1732532655142,-500.0,0.00039877,21]
[343249666,1732532655170,-500.0,0.00039877,21]
[343249667,1732532655194,-880.06,0.00039877,21]
[343249668,1732532655218,-500.0,0.00039877,21]
[343249669,1732532655241,-2617.3,0.00039877,2]
[343249670,1732532655265,-500.0,0.00039877,21]
[343249671,1732532655287,-500.0,0.00039877,21]
[343249672,1732532655311,-500.0,0.00039877,21]
[343249673,1732532655334,-500.0,0.00039877,21]
[343249674,1732532655357,-1017.78,0.00039877,21]
[343249675,1732532655380,-500.0,0.00039877,21]
[343249676,1732532655404,-1000.0,0.00039877,21]
[343249677,1732532655431,-500.0,0.00039877,21]
[343249678,1732532655453,-1037.63,0.00039877,21]
[343249679,1732532655477,-500.0,0.00039877,21]
[343249680,1732532655501,-777.53,0.00039877,21]
[343249681,1732532655524,-1089.67,0.00039877,21]
[343249682,1732532655547,-500.0,0.00039877,21]
[343249683,1732532655570,-500.0,0.00039877,21]
[343249684,1732532655594,-500.0,0.00039877,21]
[343249685,1732532655618,-551.59,0.00039877,21]
[343249686,1732532655642,-500.0,0.00039877,21]
[343249687,1732532655669,-500.0,0.00039877,21]
[343249688,1732532655695,-500.0,0.00039877,21]
[343249689,1732532655721,-500.0,0.00039877,21]
[343249690,1732532655744,-500.0,0.00039877,21]
[343249691,1732532655768,-500.0,0.00039877,21]
[343249692,1732532655792,-790.58,0.00039877,21]
[343249693,1732532655816,-4250.59,0.00039877,21]
[343249694,1732532655840,-500.0,0.00039877,21]
[343249695,1732532655865,-500.0,0.00039877,21]
[343249696,1732532655889,-1539.48,0.00039877,21]
[343249697,1732532655916,-961.47,0.00039877,21]
[343249698,1732532655940,-500.0,0.00039877,21]
[343249699,1732532655965,-500.0,0.00039877,21]
[343249700,1732532655989,-1576.46,0.00039877,21]
[343249701,1732532656012,-500.0,0.00039877,21]
[343249702,1732532656037,-500.0,0.00039877,21]
[343249703,1732532656065,-500.0,0.00039877,21]
[343249704,1732532656090,-504.82,0.00039877,21]
[343249705,1732532656117,-542.31,0.00039877,21]
[343249706,1732532656145,-500.0,0.00039877,21]
[343249707,1732532656172,-725.84,0.00039877,21]
[343249708,1732532656198,-500.0,0.00039877,21]
[343249709,1732532656225,-500.0,0.00039877,21]
[343249710,1732532656250,-2192.49,0.00039877,21]
[343249711,1732532656275,-1580.0,0.00039877,21]
[343249712,1732532656300,-671.48,0.00039877,21]
[343249713,1732532656326,-633.88,0.00039877,21]
[343249714,1732532656352,-500.0,0.00039877,21]
[343249715,1732532656376,-500.0,0.00039877,21]
[343249716,1732532656403,-500.0,0.00039877,21]
[343249717,1732532656429,-500.0,0.00039877,21]
[343249718,1732532656456,-500.0,0.00039877,21]
[343249719,1732532656482,-1292.43,0.00039877,21]
[343249720,1732532656507,-500.0,0.00039877,21]
[343249721,1732532656534,-500.0,0.00039877,21]
[343249722,1732532656562,-700.87,0.00039877,21]
[343249723,1732532656587,-500.0,0.00039877,21]
[343249724,1732532656612,-713.25,0.00039877,21]
[343249725,1732532656636,-500.0,0.00039877,21]
[343249726,1732532656661,-500.0,0.00039877,21]
[343249727,1732532656689,-875.61,0.00039877,21]
[343249728,1732532656714,-5528.84,0.00039877,21]
[343249729,1732532656740,-500.0,0.00039877,21]
[343249730,1732532656765,-1499.87,0.00039877,21]
[343249731,1732532656789,-426.05314841,0.00039877,21]
[343249732,1732532656815,-1922.44,0.00039877,21]
[343249733,1732532656840,-500.0,0.00039877,21]
[343249734,1732532656865,-500.0,0.00039877,21]
[343249735,1732532656889,-500.0,0.00039877,21]
[343249736,1732532656919,-2387.18190944,0.00039899,15]
[343249737,1732532656947,-161.77,0.00039989,3]
[343249738,1732532656974,-485.35,0.00039989,3]
[343249739,1732532656998,-4585.2,0.00039999,21]
[343249740,1732532657024,-851.7,0.00039999,21]
[343249741,1732532657051,-5410.63,0.00039999,21]
[343249742,1732532657079,-500.0,0.00039999,21]
[343249743,1732532657106,-1973.4,0.00039999,21]
[343249744,1732532657131,-4420.66,0.00039999,21]
[343249745,1732532657159,-5984.38,0.00039999,21]
[343249746,1732532657187,-6051.6,0.00039999,21]
[343249747,1732532657216,-1300.59,0.00039999,21]
[343249748,1732532657242,-500.0,0.00039999,21]
[343249749,1732532657526,-1357.91,0.00039999,21]
[343249750,1732532657552,-3894.59,0.00039999,21]
[343249751,1732532657577,-14627.41,0.00039999,21]
[343249752,1732532657602,-500.0,0.00039999,21]
[343249753,1732532657626,-2412.24,0.00039999,21]
[343249754,1732532657653,-2936.98,0.00039999,21]
[343249755,1732532657678,-500.0,0.00039999,21]
[343249756,1732532657702,-500.0,0.00039999,21]
[343249757,1732532657726,-500.0,0.00039999,21]
[343249758,1732532657749,-570.26341273,0.0004,2]
[343249759,1732532657772,-1055.86665557,0.0004,2]
[343249760,1732532657798,-152.0,0.00040061,4]
[343249761,1732532657823,-5000.0,0.000401,120]
[343249762,1732532657847,-1500.0,0.00040111,30]
[343249763,1732532657872,-374.29345389,0.00040111,30]
[343249764,1732532657897,-3750.0,0.00040125,120]
[343249765,1732532657924,-500.0,0.0004015,21]
[343249766,1732532657951,-1065.09,0.0004015,21]
[343249767,1732532657977,-500.0,0.0004015,21]
[343249768,1732532658003,-500.0,0.0004015,21]
[343249769,1732532658029,-500.0,0.0004015,21]
[343249770,1732532658058,-500.0,0.0004015,21]
[343249771,1732532658087,-500.0,0.0004015,21]
[343249772,1732532658115,-500.0,0.0004015,21]
[343249773,1732532658142,-223.6327166,0.0004015,21]
[343249774,1732532658169,-500.0,0.0004015,21]
[343249775,1732532658194,-500.0,0.0004015,21]
[343249776,1732532658222,-1721.9,0.0004015,21]
[343249777,1732532658248,-776.3,0.0004015,21]
[343249778,1732532658273,-500.0,0.0004015,21]
[343249779,1732532658300,-508.61461576,0.0004015,21]
[343249780,1732532658326,-500.0,0.0004015,21]
[343249781,1732532658355,-521.59957796,0.0004015,21]
[343249782,1732532658380,-500.0,0.0004015,21]
[343249783,1732532658405,-500.0,0.0004015,21]
[343249784,1732532658439,-500.0,0.0004015,21]
[343249785,1732532658463,-500.0,0.0004015,21]
[343249786,1732532658490,-500.0,0.0004015,21]
[343249787,1732532658515,-254.1671499,0.0004015,21]
[343249788,1732532658542,-500.0,0.0004015,21]
[343249789,1732532658568,-500.0,0.0004015,21]
[343249790,1732532658594,-500.0,0.0004015,21]
[343249791,1732532658620,-500.0,0.0004015,21]
[343249792,1732532658646,-500.0,0.0004015,21]
[343249793,1732532658675,-500.0,0.0004015,21]
[343249794,1732532658701,-1826.63,0.0004015,21]
[343249795,1732532658730,-2723.73,0.0004015,21]
[343249796,1732532658756,-500.0,0.0004015,21]
[343249797,1732532658783,-500.0,0.0004015,21]
[343249798,1732532658811,-500.0,0.0004015,21]
[343249799,1732532658837,-500.0,0.0004015,21]
[343249800,1732532658863,-516.37848421,0.0004015,21]
[343249801,1732532658891,-951.95,0.0004015,21]
[343249802,1732532658918,-500.0,0.0004015,21]
[343249803,1732532658945,-870.89,0.0004015,21]
[343249804,1732532658971,-2153.49,0.0004015,21]
[343249805,1732532658998,-500.0,0.0004015,21]
[343249806,1732532659023,-500.0,0.0004015,21]
[343249807,1732532659048,-1113.59,0.0004015,21]
[343249808,1732532659077,-500.0,0.0004015,21]
[343249809,1732532659104,-659.89,0.0004015,21]
[343249810,1732532659129,-500.0,0.0004015,21]
[343249811,1732532659155,-500.0,0.0004015,21]
[343249812,1732532659183,-500.0,0.0004015,21]
[343249813,1732532659207,-500.0,0.0004015,21]
[343249814,1732532659235,-500.0,0.0004015,21]
[343249815,1732532659261,-500.0,0.0004015,21]
[343249816,1732532659287,-500.0,0.0004015,21]
[343249817,1732532659312,-2119.8,0.0004015,21]
[343249818,1732532659337,-502.70983735,0.0004015,21]
[343249819,1732532659362,-500.0,0.0004015,21]
[343249820,1732532659387,-500.0,0.0004015,21]
[343249821,1732532659413,-843.63,0.0004015,2]
[343249822,1732532659440,-508.40798002,0.0004015,21]
[343249823,1732532659466,-2388.93,0.0004015,21]
[343249824,1732532659492,-500.0,0.0004015,21]
[343249825,1732532659518,-224.8652647,0.0004015,21]
[343249826,1732532659543,-500.0,0.0004015,21]
[343249827,1732532659568,-500.0,0.0004015,21]